[Event "Asian Amateur-ch Women 2022"]
[Site "Muscat"]
[Date "2022.10.02"]
[Round "2.2"]
[White "Sawan, Eman"]
[Black "Al Dhaffari, Salma"]
[Result "1-0"]
[ECO "B11"]
[WhiteElo "1840"]
[BlackElo "1436"]
[Annotator "NA RC COMBH"]
[PlyCount "25"]
[EventDate "2022.09.29"]
[EventType "swiss"]
[SourceTitle "playchess.com"]
[Source "ChessBase"]
[SourceQuality "1"]
[TimeControl "5400+30"]

1. e4 {[%emt 0:00:03]} c6 {[%emt 0:00:06]} 2. Nf3 {[%emt 0:00:09]} d5 {[%emt 0:00:08]} 3. Nc3 {[%emt 0:00:05]} Bg4 {[%emt 0:02:19]} 4. h3 {[%emt 0:00:17]} Bh5 {[%emt 0:01:13]} 5. g4 {[%emt 0:05:43]} Bg6 {[%emt 0:01:45]} 6. exd5 {[%emt 0:01:14]} cxd5 {[%emt 0:00:41]} 7. Ne5 {[%emt 0:03:54]} a6 {[%emt 0:04:04]} 8. h4 {[%emt 0:07:01]} d4 {[%emt 0:19:40]} 9. h5 {[%emt 0:04:20]} Be4 {[%emt 0:18:30]} 10. Nxf7 {[%emt 0:20:44]} Bxc2 {[%emt 0:07:28]} 11. Qf3 {[%emt 0:04:52]} Qc8 {[%emt 0:12:10]} 12. Nd5 {[%emt 0:18:07]} Qc6 {[%emt 0:08:57]} 13. Ne5 {[%emt 0:05:47]} 1-0

[Event "Asian Amateur-ch Women 2022"]
[Site "Muscat"]
[Date "2022.10.02"]
[Round "2.3"]
[White "Nadernia, Niki"]
[Black "Amal Fadel S M Alshamsi"]
[Result "1-0"]
[ECO "C76"]
[WhiteElo "1769"]
[BlackElo "1404"]
[Annotator "NA RC COMBH"]
[PlyCount "81"]
[EventDate "2022.09.29"]
[EventType "swiss"]
[SourceTitle "playchess.com"]
[Source "ChessBase"]
[SourceQuality "1"]
[TimeControl "5400+30"]

1. e4 {[%emt 0:00:11]} e5 {[%emt 0:00:45]} 2. Nf3 {[%emt 0:00:07]} Nc6 {[%emt 0:00:03]} 3. Bb5 {[%emt 0:00:08]} a6 {[%emt 0:00:16]} 4. Ba4 {[%emt 0:00:06]} d6 {[%emt 0:00:06]} 5. c3 {[%emt 0:00:58]} Bd7 {[%emt 0:00:11]} 6. O-O {[%emt 0:01:08]} g6 {[%emt 0:00:40]} 7. d4 {[%emt 0:03:09]} Bg7 {[%emt 0:03:29]} 8. Bb3 {[%emt 0:06:34]} Nf6 {[%emt 0:06:50]} 9. h3 {[%emt 0:11:44]} O-O {[%emt 0:01:31]} 10. Re1 {[%emt 0:01:07]} h6 {[%emt 0:14:43]} 11. Nbd2 {[%emt 0:05:49]} Kh8 {[%emt 0:08:03]} 12. a4 {[%emt 0:09:13]} Nh5 {[%emt 0:59:53]} 13. Nc4 {[%emt 0:04:10]} Qe8 {[%emt 0:00:00]} 14. Ne3 {[%emt 0:08:09]} f5 {[%emt 0:00:00]} 15. exf5 {[%emt 0:06:13]} e4 {[%emt 0:00:00]} 16. Nd5 {[%emt 0:03:44]} gxf5 {[%emt 0:00:00]} 17. Nxc7 {[%emt 0:01:05]} Qd8 {[%emt 0:00:00]} 18. Ng5 {[%emt 0:06:11]} Nf6 {[%emt 0:00:00]} 19. Nge6 {[%emt 0:07:07]} Bxe6 {[%emt 0:00:00]} 20. Nxe6 {[%emt 0:00:06]} Qd7 {[%emt 0:00:00]} 21. Nxf8 {[%emt 0:00:37]} Rxf8 {[%emt 0:00:00]} 22. Bf4 {[%emt 0:05:19]} d5 {[%emt 0:00:00]} 23. Rc1 {[%emt 0:01:40]} Ne7 {[%emt 0:00:00]} 24. c4 {[%emt 0:02:36]} Ng6 {[%emt 0:00:00]} 25. Be5 {[%emt 0:02:11]} Ne7 {[%emt 0:00:00]} 26. cxd5 {[%emt 0:02:21]} Nexd5 {[%emt 0:00:00]} 27. a5 {[%emt 0:02:06]} Rd8 {[%emt 0:00:00]} 28. Rc5 {[%emt 0:00:37]} Qe7 {[%emt 0:04:40]} 29. Qd2 {[%emt 0:02:44]} Kh7 {[%emt 0:01:04]} 30. Rec1 {[%emt 0:01:00]} Rd7 {[%emt 0:01:10]} 31. Bxf6 {[%emt 0:03:33]} Nxf6 {[%emt 0:00:08]} 32. Rxf5 {[%emt 0:00:21]} Rc7 {[%emt 0:01:33]} 33. Rxc7 {[%emt 0:00:52]} Qxc7 {[%emt 0:00:02]} 34. Bc2 {[%emt 0:00:26]} Qc4 {[%emt 0:00:26]} 35. b3 {[%emt 0:00:26]} Qe6 {[%emt 0:00:21]} 36. Re5 {[%emt 0:00:08]} Qc6 {[%emt 0:00:43]} 37. d5 {[%emt 0:00:12]} Qd6 {[%emt 0:00:42]} 38. Re6 {[%emt 0:00:09]} Qd7 {[%emt 0:01:00]} 39. Bxe4+ {[%emt 0:00:13]} Nxe4 {[%emt 0:00:14]} 40. Rxe4 {[%emt 0:00:05]} Qf5 {[%emt 0:00:23]} 41. Re1 {[%emt 0:00:36]} 1-0

[Event "Asian Amateur-ch Women 2022"]
[Site "Muscat"]
[Date "2022.10.02"]
[Round "2.5"]
[White "Shybi Binoj"]
[Black "Al-Khulaifi, Ghada"]
[Result "1-0"]
[ECO "C49"]
[WhiteElo "1402"]
[BlackElo "1620"]
[Annotator "NA RC COMBH"]
[PlyCount "85"]
[EventDate "2022.09.29"]
[EventType "swiss"]
[SourceTitle "playchess.com"]
[Source "ChessBase"]
[SourceQuality "1"]
[TimeControl "5400+30"]

1. e4 {[%emt 0:00:06]} e5 {[%emt 0:00:10]} 2. Nf3 {[%emt 0:00:29]} Nc6 {[%emt 0:00:10]} 3. Nc3 {[%emt 0:00:20]} Nf6 {[%emt 0:00:13]} 4. Bb5 {[%emt 0:00:37]} Bb4 {[%emt 0:00:20]} 5. d3 {[%emt 0:00:31]} d6 {[%emt 0:00:16]} 6. h3 {[%emt 0:00:14]} h6 {[%emt 0:01:16]} 7. Bd2 {[%emt 0:00:39]} O-O {[%emt 0:00:14]} 8. O-O {[%emt 0:00:34]} Ne7 {[%emt 0:02:42]} 9. Ne2 {[%emt 0:02:53]} Bxd2 {[%emt 0:01:20]} 10. Nxd2 {[%emt 0:02:01]} c6 {[%emt 0:02:42]} 11. Ba4 {[%emt 0:01:00]} Ng6 {[%emt 0:08:35]} 12. Bb3 {[%emt 0:03:42]} Nh5 {[%emt 0:02:24]} 13. Ng3 {[%emt 0:07:32]} Nhf4 {[%emt 0:01:47]} 14. Nf3 {[%emt 0:03:15]} d5 {[%emt 0:12:29]} 15. Qd2 {[%emt 0:06:57]} Qf6 {[%emt 0:01:45]} 16. Nh2 {[%emt 0:06:31]} Nh4 {[%emt 0:02:54]} 17. Kh1 {[%emt 0:05:43]} Nhxg2 {[%emt 0:07:33]} 18. exd5 {[%emt 0:03:08]} Bxh3 {[%emt 0:01:06]} 19. Ne4 {[%emt 0:03:47]} Qh4 {[%emt 0:02:52]} 20. dxc6 {[%emt 0:04:11]} bxc6 {[%emt 0:00:38]} 21. Qd1 {[%emt 0:02:08]} Bg4 {[%emt 0:04:50]} 22. Qxg4 {[%emt 0:03:05]} Qxg4 {[%emt 0:03:25]} 23. Nxg4 {[%emt 0:00:19]} h5 {[%emt 0:00:28]} 24. Nxe5 {[%emt 0:02:03]} Rac8 {[%emt 0:03:11]} 25. Ng6 {[%emt 0:01:43]} Nxg6 {[%emt 0:02:34]} 26. Kxg2 {[%emt 0:00:13]} Nf4+ {[%emt 0:00:16]} 27. Kf3 {[%emt 0:00:25]} Ne6 {[%emt 0:02:04]} 28. Bxe6 {[%emt 0:00:53]} fxe6+ {[%emt 0:00:02]} 29. Ke3 {[%emt 0:00:11]} c5 {[%emt 0:02:29]} 30. Rg1 {[%emt 0:00:55]} Rc7 {[%emt 0:06:02]} 31. Rg5 {[%emt 0:00:37]} Rf5 {[%emt 0:03:05]} 32. Rag1 {[%emt 0:01:21]} Kf8 {[%emt 0:01:56]} 33. Rxf5+ {[%emt 0:00:44]} exf5 {[%emt 0:00:07]} 34. Nd6 {[%emt 0:00:54]} Rc6 {[%emt 0:04:40]} 35. Nxf5 {[%emt 0:01:08]} g6 {[%emt 0:00:23]} 36. Ng3 {[%emt 0:00:27]} Kf7 {[%emt 0:01:11]} 37. Ne4 {[%emt 0:00:16]} c4 {[%emt 0:02:00]} 38. d4 {[%emt 0:00:20]} Kg7 {[%emt 0:01:14]} 39. d5 {[%emt 0:00:21]} Rc7 {[%emt 0:00:50]} 40. Kd4 {[%emt 0:00:14]} Kh6 {[%emt 0:00:47]} 41. d6 {[%emt 0:00:19]} Rd7 {[%emt 0:00:06]} 42. Kd5 {[%emt 0:00:17]} h4 {[%emt 0:00:27]} 43. Ke6 {[%emt 0:00:31]} 1-0

[Event "Asian Amateur-ch Women 2022"]
[Site "Muscat"]
[Date "2022.10.02"]
[Round "2.6"]
[White "Al Mansouri, Moza"]
[Black "Ahoud Eisa Bashkardi"]
[Result "1-0"]
[ECO "C67"]
[WhiteElo "1610"]
[BlackElo "1347"]
[Annotator "NA RC COMBH"]
[PlyCount "143"]
[EventDate "2022.09.29"]
[EventType "swiss"]
[SourceTitle "playchess.com"]
[Source "ChessBase"]
[SourceQuality "1"]
[TimeControl "5400+30"]

1. e4 {[%emt 0:00:05]} e5 {[%emt 0:00:07]} 2. Nf3 {[%emt 0:00:04]} Nc6 {[%emt 0:00:07]} 3. Bb5 {[%emt 0:00:04]} Nf6 {[%emt 0:00:16]} 4. O-O {[%emt 0:00:16]} Nxe4 {[%emt 0:00:51]} 5. d4 {[%emt 1:32:31]} Nd6 {[%emt 0:00:52]} 6. dxe5 {[%emt 0:00:00]} Nxb5 {[%emt 0:00:28]} 7. a4 {[%emt 0:00:00]} d6 {[%emt 0:00:11]} 8. e6 {[%emt 0:00:00]} Bxe6 {[%emt 0:06:29]} 9. axb5 {[%emt 0:00:00]} Ne5 {[%emt 0:00:16]} 10. Nd4 {[%emt 0:00:00]} Bd7 {[%emt 0:09:39]} 11. Re1 {[%emt 0:00:00]} Be7 {[%emt 0:00:31]} 12. Nc3 {[%emt 0:00:00]} O-O {[%emt 0:01:40]} 13. Nd5 {[%emt 0:00:00]} Re8 {[%emt 0:00:57]} 14. Nxe7+ {[%emt 0:00:00]} Rxe7 {[%emt 0:00:16]} 15. Bg5 {[%emt 0:00:00]} f6 {[%emt 0:00:54]} 16. Bh4 {[%emt 0:00:00]} Ng6 {[%emt 0:02:43]} 17. Qh5 {[%emt 0:00:00]} Nxh4 {[%emt 0:03:13]} 18. Qxh4 {[%emt 0:00:00]} Qe8 {[%emt 0:00:26]} 19. f3 {[%emt 0:00:00]} Rxe1+ {[%emt 0:03:10]} 20. Rxe1 {[%emt 0:00:00]} Qf7 {[%emt 0:00:29]} 21. Re3 {[%emt 0:00:00]} Re8 {[%emt 0:04:52]} 22. Ra3 {[%emt 0:00:00]} Qc4 {[%emt 0:05:52]} 23. Rc3 {[%emt 0:00:00]} Qb4 {[%emt 0:03:57]} 24. h3 {[%emt 0:00:00]} c5 {[%emt 0:02:13]} 25. bxc6 {[%emt 0:00:00]} bxc6 {[%emt 0:00:35]} 26. Rb3 {[%emt 0:00:00]} Qe1+ {[%emt 0:01:57]} 27. Qxe1 {[%emt 0:00:00]} Rxe1+ {[%emt 0:00:06]} 28. Kf2 {[%emt 0:00:00]} Rd1 {[%emt 0:01:03]} 29. Ne2 {[%emt 0:00:00]} Ra1 {[%emt 0:02:31]} 30. Rb7 {[%emt 0:00:00]} Be8 {[%emt 0:01:48]} 31. Nd4 {[%emt 0:00:00]} g5 {[%emt 0:08:12]} 32. Nf5 {[%emt 0:00:00]} d5 {[%emt 0:00:46]} 33. Rb8 {[%emt 0:00:00]} Kf8 {[%emt 0:04:28]} 34. Nd6 {[%emt 0:00:00]} Ke7 {[%emt 0:00:16]} 35. Nxe8 {[%emt 0:00:00]} Rc1 {[%emt 0:00:25]} 36. c3 {[%emt 0:00:00]} Rc2+ {[%emt 0:00:15]} 37. Kg3 {[%emt 0:00:00]} c5 {[%emt 0:00:20]} 38. Ng7 {[%emt 0:00:00]} d4 {[%emt 0:00:52]} 39. cxd4 {[%emt 0:00:00]} cxd4 {[%emt 0:00:12]} 40. Nf5+ {[%emt 0:00:00]} Kd7 {[%emt 0:01:05]} 41. Nxd4 {[%emt 0:00:00]} Rd2 {[%emt 0:00:39]} 42. Nf5 {[%emt 0:00:00]} Kc7 {[%emt 0:00:29]} 43. Rb3 {[%emt 0:00:00]} Rd5 {[%emt 0:01:36]} 44. Ne3 {[%emt 0:00:00]} Rc5 {[%emt 0:00:56]} 45. Rc3 {[%emt 0:00:00]} Rxc3 {[%emt 0:00:14]} 46. Nd5+ {[%emt 0:00:00]} Kc6 {[%emt 0:00:31]} 47. Nxc3 {[%emt 0:00:00]} a5 {[%emt 0:00:12]} 48. Kg4 {[%emt 0:00:00]} Kc5 {[%emt 0:00:31]} 49. Kf5 {[%emt 0:00:00]} Kc4 {[%emt 0:00:58]} 50. Kxf6 {[%emt 0:00:00]} Kb3 {[%emt 0:00:12]} 51. Kxg5 {[%emt 0:00:00]} Kxb2 {[%emt 0:00:14]} 52. Na4+ {[%emt 0:00:00]} Kb3 {[%emt 0:00:51]} 53. Nb6 {[%emt 0:00:00]} Kb4 {[%emt 0:01:07]} 54. f4 {[%emt 0:00:00]} Kb5 {[%emt 0:01:15]} 55. f5 {[%emt 0:00:00]} Kc5 {[%emt 0:01:15]} 56. f6 {[%emt 0:00:00]} Kxb6 {[%emt 0:01:53]} 57. f7 {[%emt 0:00:00]} a4 {[%emt 0:00:04]} 58. f8=Q {[%emt 0:00:00]} Kb5 {[%emt 0:00:19]} 59. Kh6 {[%emt 0:00:00]} Kc4 {[%emt 0:00:21]} 60. Qa3 {[%emt 0:00:00]} Kb5 {[%emt 0:00:13]} 61. Kxh7 {[%emt 0:00:00]} Ka5 {[%emt 0:00:10]} 62. g4 {[%emt 0:00:00]} Kb5 {[%emt 0:00:12]} 63. g5 {[%emt 0:00:00]} Ka5 {[%emt 0:00:09]} 64. g6 {[%emt 0:00:00]} Kb5 {[%emt 0:00:05]} 65. g7 {[%emt 0:00:00]} Ka5 {[%emt 0:00:11]} 66. g8=Q {[%emt 0:00:00]} Kb5 {[%emt 0:00:07]} 67. Qb8+ {[%emt 0:00:00]} Kc6 {[%emt 0:00:07]} 68. Qxa4+ {[%emt 0:00:00]} Kd5 {[%emt 0:00:18]} 69. Qbb5+ {[%emt 0:00:00]} Kd6 {[%emt 0:00:16]} 70. Qaa6+ {[%emt 0:00:00]} Kc7 {[%emt 0:00:17]} 71. Qbb7+ {[%emt 0:00:00]} Kd8 {[%emt 0:00:04]} 72. Qaa8# {[%emt 0:00:00]} 1-0

[Event "Asian Amateur-ch Women 2022"]
[Site "Muscat"]
[Date "2022.10.02"]
[Round "2.7"]
[White "Anoud Eisa Bashkardi"]
[Black "Fatima, Saif Al-Ali"]
[Result "1-0"]
[ECO "B13"]
[WhiteElo "1277"]
[BlackElo "1595"]
[Annotator "NA RC COMBH"]
[PlyCount "74"]
[EventDate "2022.09.29"]
[EventType "swiss"]
[SourceTitle "playchess.com"]
[Source "ChessBase"]
[SourceQuality "1"]
[TimeControl "5400+30"]

1. e4 c6 2. d4 d5 3. exd5 cxd5 4. Bd3 Nc6 5. c3 Nf6 6. Nf3 g6 7. O-O Bg7 8. h3 O-O 9. Bf4 e6 10. Nbd2 a6 11. a4 b6 12. Re1 Bb7 13. Ne5 Nh5 14. Nxc6 Bxc6 15. Bh2 b5 16. axb5 axb5 17. Qb3 Qd7 18. Nf3 Qb7 19. g4 Nf6 20. Ne5 Be8 21. Rxa8 Qxa8 22. Nf3 Qa4 23. Qxa4 bxa4 24. Bd6 Nd7 25. Bxf8 Bxf8 26. Bb5 Ne5 27. Nxe5 Bxb5 28. Nf3 Bd6 29. Nd2 Bf4 30. Nb1 Bc4 31. Na3 Ba6 32. Kg2 Bd2 33. Rd1 Bf4 34. Kf3 g5 35. b4 axb3 36. Rb1 Bc4 37. Nxc4 dxc4 1-0

[Event "Asian Amateur-ch Women 2022"]
[Site "Muscat"]
[Date "2022.10.02"]
[Round "2.8"]
[White "Mehak, Gul"]
[Black "Amulya Guruprasad"]
[Result "0-1"]
[ECO "C44"]
[WhiteElo "1565"]
[BlackElo "1278"]
[Annotator "NA RC COMBH"]
[PlyCount "94"]
[EventDate "2022.09.29"]
[EventType "swiss"]
[SourceTitle "playchess.com"]
[Source "ChessBase"]
[SourceQuality "1"]
[TimeControl "5400+30"]

1. e4 {[%emt 0:00:04]} e5 {[%emt 0:00:05]} 2. Nf3 {[%emt 0:00:10]} Nc6 {[%emt 0:00:23]} 3. d4 {[%emt 0:00:35]} exd4 {[%emt 0:01:39]} 4. Bc4 {[%emt 0:01:22]} Bb4+ {[%emt 0:04:42]} 5. c3 {[%emt 0:04:24]} dxc3 {[%emt 0:00:37]} 6. bxc3 {[%emt 0:03:43]} Ba5 {[%emt 0:01:04]} 7. Qd5 {[%emt 0:02:08]} Qe7 {[%emt 0:06:29]} 8. Ba3 {[%emt 0:28:02]} Qf6 {[%emt 0:20:15]} 9. e5 {[%emt 0:09:40]} Qg6 {[%emt 0:06:51]} 10. Nh4 {[%emt 0:18:58]} Qh5 {[%emt 0:00:51]} 11. O-O {[%emt 0:10:10]} Bb6 {[%emt 0:00:39]} 12. Qf3 {[%emt 0:02:48]} Qxf3 {[%emt 0:03:34]} 13. Nxf3 {[%emt 0:00:04]} h6 {[%emt 0:00:15]} 14. Nbd2 {[%emt 0:00:33]} Nge7 {[%emt 0:00:28]} 15. Rfe1 {[%emt 0:01:03]} O-O {[%emt 0:01:23]} 16. Nb3 {[%emt 0:00:53]} Re8 {[%emt 0:01:54]} 17. Rad1 {[%emt 0:00:26]} Ng6 {[%emt 0:05:14]} 18. Kf1 {[%emt 0:05:22]} Ngxe5 {[%emt 0:01:30]} 19. Nxe5 {[%emt 0:00:32]} Rxe5 {[%emt 0:00:06]} 20. Bd5 {[%emt 0:01:57]} d6 {[%emt 0:01:23]} 21. Bxc6 {[%emt 0:01:01]} Rxe1+ {[%emt 0:00:05]} 22. Rxe1 {[%emt 0:00:13]} bxc6 {[%emt 0:00:07]} 23. Re8+ {[%emt 0:00:28]} Kh7 {[%emt 0:00:05]} 24. Ke1 {[%emt 0:03:12]} Bb7 {[%emt 0:00:27]} 25. Re7 {[%emt 0:00:16]} Kg6 {[%emt 0:00:13]} 26. Bxd6 {[%emt 0:01:19]} cxd6 {[%emt 0:02:56]} 27. Rxb7 {[%emt 0:04:37]} Re8+ {[%emt 0:00:16]} 28. Kf1 {[%emt 0:00:00]} Re5 {[%emt 0:00:21]} 29. a4 {[%emt 0:00:00]} f6 {[%emt 0:02:04]} 30. Rd7 {[%emt 0:00:12]} Rd5 {[%emt 0:12:34]} 31. a5 {[%emt 0:00:47]} Bxa5 {[%emt 0:00:31]} 32. Nxa5 {[%emt 0:00:03]} Rxa5 {[%emt 0:00:02]} 33. Rxd6 {[%emt 0:00:02]} Rc5 {[%emt 0:00:03]} 34. Rd7 {[%emt 0:01:22]} a6 {[%emt 0:01:27]} 35. Ra7 {[%emt 0:00:25]} Rxc3 {[%emt 0:00:29]} 36. Rxa6 {[%emt 0:00:02]} Kf5 {[%emt 0:00:23]} 37. Ke2 {[%emt 0:00:16]} Rc2+ {[%emt 0:00:37]} 38. Ke3 {[%emt 0:00:27]} c5 {[%emt 0:00:22]} 39. Ra7 {[%emt 0:00:49]} g6 {[%emt 0:01:38]} 40. g3 {[%emt 0:00:26]} h5 {[%emt 0:00:52]} 41. h3 {[%emt 0:00:29]} h4 {[%emt 0:03:01]} 42. Rc7 {[%emt 0:01:04]} Rc3+ {[%emt 0:01:29]} 43. Ke2 {[%emt 0:00:06]} hxg3 {[%emt 0:00:06]} 44. fxg3 {[%emt 0:00:06]} Rxg3 {[%emt 0:00:20]} 45. Rxc5+ {[%emt 0:00:05]} Kf4 {[%emt 0:00:09]} 46. Rc4+ {[%emt 0:00:28]} Kg5 {[%emt 0:00:04]} 47. h4+ {[%emt 0:00:30]} Kh5 {[%emt 0:00:04]} 0-1

[Event "Asian Amateur-ch Women 2022"]
[Site "Muscat"]
[Date "2022.10.02"]
[Round "3.1"]
[White "Rouda Essa, Alserkal"]
[Black "Khalil, Hanan"]
[Result "1-0"]
[ECO "B07"]
[WhiteElo "1893"]
[BlackElo "1484"]
[Annotator "NA RC COMBH"]
[PlyCount "57"]
[EventDate "2022.09.29"]
[EventType "swiss"]
[SourceTitle "playchess.com"]
[Source "ChessBase"]
[SourceQuality "1"]
[TimeControl "5400+30"]

1. e4 {[%emt 0:00:02]} d6 {[%emt 0:00:09]} 2. d4 {[%emt 0:00:04]} Nf6 {[%emt 0:00:06]} 3. Nc3 {[%emt 0:00:05]} e5 {[%emt 0:00:07]} 4. dxe5 {[%emt 0:00:05]} dxe5 {[%emt 0:00:09]} 5. Qxd8+ {[%emt 0:00:07]} Kxd8 {[%emt 0:00:06]} 6. Bc4 {[%emt 0:00:11]} Be6 {[%emt 0:00:26]} 7. Bxe6 {[%emt 0:00:06]} fxe6 {[%emt 0:00:09]} 8. Nf3 {[%emt 0:02:37]} Bd6 {[%emt 0:00:52]} 9. Bg5 {[%emt 0:06:18]} Ke7 {[%emt 0:09:34]} 10. O-O-O {[%emt 0:04:12]} Nbd7 {[%emt 0:04:26]} 11. Nd2 {[%emt 0:01:58]} a6 {[%emt 0:02:50]} 12. a4 {[%emt 0:10:45]} h6 {[%emt 0:01:54]} 13. Bh4 {[%emt 0:00:48]} Rhf8 {[%emt 0:16:52]} 14. f3 {[%emt 0:12:54]} Rfb8 {[%emt 0:14:21]} 15. a5 {[%emt 0:18:10]} b5 {[%emt 0:11:06]} 16. axb6 {[%emt 0:01:06]} Nxb6 {[%emt 0:00:29]} 17. Rhe1 {[%emt 0:02:18]} g5 {[%emt 0:10:33]} 18. Bf2 {[%emt 0:01:33]} Nfd7 {[%emt 0:00:17]} 19. h4 {[%emt 0:04:05]} Rh8 {[%emt 0:01:45]} 20. Rh1 {[%emt 0:02:54]} Rab8 {[%emt 0:03:09]} 21. Ne2 {[%emt 0:06:32]} Na4 {[%emt 0:02:50]} 22. b3 {[%emt 0:02:36]} Nab6 {[%emt 0:12:08]} 23. Rh3 {[%emt 0:02:27]} a5 {[%emt 0:03:55]} 24. Rdh1 {[%emt 0:00:35]} Rhg8 {[%emt 0:02:41]} 25. hxg5 {[%emt 0:00:46]} hxg5 {[%emt 0:00:02]} 26. Rh7+ {[%emt 0:01:32]} Kf6 {[%emt 0:00:44]} 27. Ng3 {[%emt 0:00:49]} Nf8 {[%emt 0:01:30]} 28. R1h6+ {[%emt 0:00:33]} Rg6 {[%emt 0:00:33]} 29. Nh5# {[%emt 0:00:07]} 1-0

[Event "Asian Amateur-ch Women 2022"]
[Site "Muscat"]
[Date "2022.10.02"]
[Round "3.2"]
[White "Abeysinghe, H M H Janandani"]
[Black "Sawan, Eman"]
[Result "1-0"]
[ECO "B31"]
[WhiteElo "1546"]
[BlackElo "1840"]
[Annotator "NA RC COMBH"]
[PlyCount "83"]
[EventDate "2022.09.29"]
[EventType "swiss"]
[SourceTitle "playchess.com"]
[Source "ChessBase"]
[SourceQuality "1"]
[TimeControl "5400+30"]

1. e4 {[%emt 0:00:09]} c5 {[%emt 0:00:05]} 2. Be2 {[%emt 0:00:16]} d6 {[%emt 0:01:07]} 3. d3 {[%emt 0:00:34]} Nf6 {[%emt 0:00:43]} 4. f4 {[%emt 0:00:28]} Nc6 {[%emt 0:02:05]} 5. Nf3 {[%emt 0:00:35]} e6 {[%emt 0:01:25]} 6. O-O {[%emt 0:01:16]} Be7 {[%emt 0:00:36]} 7. c3 {[%emt 0:00:29]} a6 {[%emt 0:03:28]} 8. a4 {[%emt 0:01:03]} Rb8 {[%emt 0:02:17]} 9. Na3 {[%emt 0:02:32]} O-O {[%emt 0:02:41]} 10. Qe1 {[%emt 0:02:07]} b5 {[%emt 0:01:55]} 11. axb5 {[%emt 0:00:47]} axb5 {[%emt 0:00:16]} 12. Qg3 {[%emt 0:01:14]} Kh8 {[%emt 0:04:41]} 13. Ng5 {[%emt 0:08:03]} h6 {[%emt 0:06:10]} 14. Nh3 {[%emt 0:03:34]} b4 {[%emt 0:05:20]} 15. Nc2 {[%emt 0:05:26]} bxc3 {[%emt 0:03:48]} 16. bxc3 {[%emt 0:00:32]} Qb6 {[%emt 0:10:02]} 17. Qe1 {[%emt 0:04:27]} c4+ {[%emt 0:15:32]} 18. Be3 {[%emt 0:05:41]} Qb2 {[%emt 0:01:02]} 19. Nd4 {[%emt 0:01:35]} Nxd4 {[%emt 0:00:55]} 20. Bxd4 {[%emt 0:00:10]} cxd3 {[%emt 0:03:05]} 21. Bxd3 {[%emt 0:00:19]} Bd7 {[%emt 0:07:26]} 22. e5 {[%emt 0:13:55]} Nd5 {[%emt 0:08:43]} 23. Qe4 {[%emt 0:01:40]} g6 {[%emt 0:01:14]} 24. c4 {[%emt 0:02:46]} Qb4 {[%emt 0:10:48]} 25. Rfb1 {[%emt 0:07:05]} Qd2 {[%emt 0:05:39]} 26. Rxb8 {[%emt 0:00:36]} Rxb8 {[%emt 0:00:42]} 27. exd6+ {[%emt 0:00:17]} Bf6 {[%emt 0:01:33]} 28. cxd5 {[%emt 0:00:56]} Bxd4+ {[%emt 0:00:36]} 29. Qxd4+ {[%emt 0:00:07]} Kg8 {[%emt 0:00:05]} 30. dxe6 {[%emt 0:01:51]} Bxe6 {[%emt 0:00:53]} 31. Nf2 {[%emt 0:01:40]} Rd8 {[%emt 0:00:35]} 32. Qf6 {[%emt 0:02:28]} Re8 {[%emt 0:00:31]} 33. Bb5 {[%emt 0:02:29]} Bd7 {[%emt 0:00:24]} 34. Bf1 {[%emt 0:01:29]} Qd5 {[%emt 0:00:35]} 35. Rd1 {[%emt 0:00:59]} Qc5 {[%emt 0:00:07]} 36. Qd4 {[%emt 0:01:00]} Qh5 {[%emt 0:00:21]} 37. Qd5 {[%emt 0:02:02]} Qh4 {[%emt 0:00:43]} 38. g3 {[%emt 0:00:43]} Qf6 {[%emt 0:00:10]} 39. Bb5 {[%emt 0:01:56]} Qd8 {[%emt 0:00:50]} 40. Bxd7 {[%emt 0:00:10]} Qxd7 {[%emt 0:00:02]} 41. Ne4 {[%emt 0:00:35]} Qa7+ {[%emt 0:00:06]} 42. Qd4 {[%emt 0:00:31]} 1-0

[Event "Asian Amateur-ch Women 2022"]
[Site "Muscat"]
[Date "2022.10.02"]
[Round "3.4"]
[White "Shybi Binoj"]
[Black "Al Mansouri, Moza"]
[Result "1-0"]
[ECO "B27"]
[WhiteElo "1402"]
[BlackElo "1610"]
[Annotator "NA RC COMBH"]
[PlyCount "81"]
[EventDate "2022.09.29"]
[EventType "swiss"]
[SourceTitle "playchess.com"]
[Source "ChessBase"]
[SourceQuality "1"]
[TimeControl "5400+30"]

1. e4 {[%emt 0:00:09]} c5 {[%emt 0:00:09]} 2. Nf3 {[%emt 0:00:10]} g6 {[%emt 0:00:08]} 3. c3 {[%emt 0:00:29]} d5 {[%emt 0:01:38]} 4. e5 {[%emt 0:01:01]} Bg7 {[%emt 0:04:53]} 5. d4 {[%emt 0:01:00]} cxd4 {[%emt 0:00:27]} 6. cxd4 {[%emt 0:00:17]} Nc6 {[%emt 0:00:37]} 7. Bb5 {[%emt 0:00:49]} Bg4 {[%emt 0:07:26]} 8. Nc3 {[%emt 0:02:57]} Nh6 {[%emt 0:06:51]} 9. Bxh6 {[%emt 0:01:35]} Bxh6 {[%emt 0:00:05]} 10. h3 {[%emt 0:00:17]} Be6 {[%emt 0:02:53]} 11. Qb3 {[%emt 0:02:27]} O-O {[%emt 0:01:20]} 12. O-O {[%emt 0:03:25]} Qd7 {[%emt 0:03:49]} 13. Bxc6 {[%emt 0:02:41]} bxc6 {[%emt 0:00:18]} 14. Na4 {[%emt 0:01:15]} Rfb8 {[%emt 0:03:58]} 15. Qc3 {[%emt 0:01:52]} Qb7 {[%emt 0:02:35]} 16. b3 {[%emt 0:02:08]} Qb5 {[%emt 0:04:43]} 17. Nh2 {[%emt 0:01:51]} Qb4 {[%emt 0:02:02]} 18. Qd3 {[%emt 0:03:19]} Bf5 {[%emt 0:01:02]} 19. Qd1 {[%emt 0:00:33]} Bg7 {[%emt 0:06:43]} 20. Rc1 {[%emt 0:01:54]} Rc8 {[%emt 0:02:15]} 21. Nc5 {[%emt 0:00:46]} Bh6 {[%emt 0:02:22]} 22. f4 {[%emt 0:01:22]} a5 {[%emt 0:06:24]} 23. g4 {[%emt 0:02:24]} Be4 {[%emt 0:00:18]} 24. g5 {[%emt 0:01:09]} Bg7 {[%emt 0:00:25]} 25. Ng4 {[%emt 0:00:55]} Bf5 {[%emt 0:00:53]} 26. Kh2 {[%emt 0:02:41]} Bxg4 {[%emt 0:01:39]} 27. hxg4 {[%emt 0:00:24]} f6 {[%emt 0:02:10]} 28. gxf6 {[%emt 0:03:07]} exf6 {[%emt 0:00:11]} 29. Qd3 {[%emt 0:00:49]} fxe5 {[%emt 0:00:35]} 30. fxe5 {[%emt 0:00:57]} Re8 {[%emt 0:01:25]} 31. a4 {[%emt 0:07:40]} Ra7 {[%emt 0:03:00]} 32. g5 {[%emt 0:03:24]} Bxe5+ {[%emt 0:03:54]} 33. dxe5 {[%emt 0:02:42]} Rxe5 {[%emt 0:00:07]} 34. Qg3 {[%emt 0:02:05]} Rae7 {[%emt 0:03:12]} 35. Nd3 {[%emt 0:09:15]} Re2+ {[%emt 0:01:30]} 36. Kh3 {[%emt 0:04:19]} Qxb3 {[%emt 0:02:13]} 37. Rf3 {[%emt 0:02:50]} Qxa4 {[%emt 0:05:09]} 38. Rcf1 {[%emt 0:01:08]} Qb5 {[%emt 0:01:00]} 39. Qf4 {[%emt 0:04:41]} Re8 {[%emt 0:04:27]} 40. Qf8+ {[%emt 0:00:54]} Rxf8 {[%emt 0:00:04]} 41. Rxf8+ {[%emt 0:00:10]} 1-0